bitfinex-derivatives/quotes_SOLF0:USTF0_20250127
["timestamp","ask_amount","ask_price","bid_price","bid_amount"]
[1737944543868,4.2482,235.52,235.51,0.03034542]
[1737944544666,0.03175119,235.55,235.51,0.03034542]
[1737944546768,4.2468,235.6,235.53,4.2479]
[1737944546965,27.10456034,235.69,235.52,2.2773]
[1737944547771,27.10456034,235.73,235.53,27.10456034]
[1737944547964,27.10456034,235.73,235.58,0.02994907]
[1737944548367,27.10456034,235.73,235.53,27.10456034]
[1737944548562,27.10456034,235.73,235.63,0.03119735]
[1737944548769,4.2457,235.66,235.63,0.03119735]
[1737944549668,4.2459,235.65,235.63,0.03119735]
[1737944550167,27.10456034,235.73,235.63,0.03119735]
[1737944550369,4.246,235.64,235.63,0.03119735]
[1737944552676,27.10456034,235.69,235.52,2.2773]
[1737944552975,0.02721001,235.66,235.54,4.2477]
[1737944553171,0.02721001,235.66,235.52,2.2773]
[1737944553674,0.02721001,235.66,235.55,4.2477]
[1737944553877,0.02721001,235.66,235.57,0.03005062]
[1737944554074,4.2466,235.62,235.57,0.03005062]
[1737944554877,4.2462,235.64,235.57,0.03005062]
[1737944555072,0.02721001,235.66,235.57,0.03005062]
[1737944556174,0.02721001,235.66,235.6,4.2468]
[1737944556374,4.2459,235.65,235.57,0.03005062]
[1737944556679,4.2459,235.65,235.59,4.2469]
[1737944556976,0.02721001,235.66,235.57,0.03005062]
[1737944558070,4.2471,235.58,235.57,0.03005062]
[1737944558877,4.27447103,235.6,235.57,0.03005062]
[1737944559077,0.02757103,235.6,235.57,0.03005062]
[1737944559781,0.02757103,235.6,235.57,4.27735062]
[1737944559971,0.02757103,235.6,235.57,0.03005062]
[1737944560482,4.5472,235.77,235.59,16.61191344]
[1737944560677,4.2442,235.75,235.64,16.61191344]
[1737944560976,2.3255,235.83,235.64,16.61191344]
[1737944561479,2.3255,235.83,235.71,0.02930983]
[1737944562180,4.2439,235.77,235.71,0.02930983]
[1737944562382,2.3255,235.83,235.71,0.02930983]
[1737944562576,16.61191344,235.8,235.71,0.02930983]
[1737944562878,16.61191344,235.76,235.6,2.6522]
[1737944563279,4.2449,235.71,235.6,2.6522]
[1737944563674,4.245,235.7,235.62,4.2464]
[1737944563880,0.02866377,235.68,235.63,0.03133989]
[1737944564075,16.61191344,235.8,235.6,2.6522]
[1737944564279,0.02706722,235.66,235.62,0.03034465]
[1737944564482,16.61191344,235.76,235.6,2.6522]
[1737944564675,0.03020454,235.66,235.62,0.02758561]
[1737944564876,4.2452,235.69,235.62,0.02758561]
[1737944565076,0.03172268,235.66,235.62,0.02758561]
[1737944565279,26.98645575,235.76,235.62,0.02758561]
[1737944565581,0.02944252,235.66,235.62,0.02758561]
[1737944565780,26.98645575,235.68,235.54,79.46]
[1737944565979,0.03078093,235.66,235.54,79.46]
[1737944566285,0.03078093,235.66,235.62,0.0271237]
[1737944566579,26.98645575,235.86,235.63,26.98645575]
[1737944566783,2.3092,235.91,235.7,26.98645575]
[1737944566982,2.3092,235.91,235.74,26.98645575]
[1737944567382,2.3092,235.91,235.77,4.2437]
[1737944567581,2.3092,235.91,235.74,26.98645575]
[1737944567775,0.02976403,235.86,235.82,0.02746488]
[1737944569084,4.27186403,235.86,235.82,0.02746488]
[1737944569585,0.02976403,235.86,235.82,0.02746488]
[1737944570978,26.98645575,236.0,235.82,0.02746488]
[1737944571187,2.2248,236.2,235.99,26.98645575]
[1737944571484,2.2248,236.2,235.92,26.98645575]
[1737944571485,2.283,236.29,236.14,26.98645575]
[1737944571684,2.361,236.26,236.14,26.98645575]
[1737944571881,4.2352,236.25,236.14,26.98645575]
[1737944572085,2.361,236.26,236.19,26.98645575]
[1737944572285,17.13193599,236.28,236.19,26.98645575]
[1737944572484,4.2349,236.27,236.19,26.98645575]
[1737944572680,17.13193599,236.28,236.19,26.98645575]
[1737944572881,17.13193599,236.28,236.23,26.98645575]
[1737944573080,17.13193599,236.28,236.19,26.98645575]
[1737944573487,17.13193599,236.28,236.21,0.02874601]
[1737944574483,17.13193599,236.28,236.26,26.98645575]
[1737944575084,2.2301,236.35,236.21,0.02874601]
[1737944575484,29.21655575,236.35,236.21,0.02874601]
[1737944575783,26.98645575,236.31,236.11,2.8544]
[1737944576486,4.2365,236.18,236.11,2.8544]
[1737944576788,26.98645575,236.31,236.11,2.8544]
[1737944576982,4.2355,236.23,236.14,26.98645575]
[1737944577184,0.02828367,236.17,236.14,26.98645575]
[1737944577488,29.21655575,236.35,236.13,0.03191279]
[1737944577683,0.02828367,236.18,236.13,0.03191279]
[1737944577885,0.02828367,236.18,236.11,2.8544]
[1737944578083,4.2361,236.2,236.13,0.02865296]
[1737944578279,0.02828367,236.17,236.13,0.02865296]
[1737944579283,4.237,236.15,236.13,0.02865296]
[1737944580488,4.237,236.15,236.13,5.296e-05]
[1737944582785,31.22345575,236.15,236.13,5.296e-05]
[1737944583182,4.237,236.15,236.13,5.296e-05]
[1737944584894,31.22345575,236.15,236.13,5.296e-05]
[1737944585395,26.98645575,236.15,235.94,2.673]
[1737944585587,26.98645575,236.08,235.88,26.98645575]
[1737944585896,4.2409,235.93,235.88,26.98645575]
[1737944586089,6.6985,236.07,235.88,26.98645575]
[1737944586589,0.02908513,236.0,235.88,26.98645575]
[1737944586792,0.02908513,236.0,235.95,0.03096964]
[1737944586987,4.2403,235.96,235.95,0.03096964]
[1737944587189,26.98645575,236.04,235.84,31.22875575]
[1737944587493,4.2404,235.96,235.93,0.03142409]
[1737944587694,0.02673156,235.98,235.93,0.03142409]
[1737944589491,4.26683156,235.98,235.93,0.03142409]
[1737944589693,0.02673156,235.98,235.93,0.03142409]
[1737944590290,4.2405,235.95,235.93,0.03142409]
[1737944590495,0.02673156,235.98,235.93,0.03142409]
[1737944590793,0.02673156,235.98,235.94,4.2406]
[1737944591197,0.02673156,235.98,235.94,2.9322]
[1737944592202,4.2405,235.95,235.94,2.9322]
[1737944592397,0.02673156,235.98,235.93,0.03142409]
[1737944592897,4.2406,235.94,235.93,0.03142409]
[1737944595096,4.2426,235.83,235.82,2.9322]
[1737944595400,26.98645575,235.96,235.82,2.9322]
[1737944595601,2.4049,235.95,235.82,2.9322]
[1737944596303,2.4049,235.95,235.67,4.1]
[1737944596304,53.9729115,235.83,235.52,10.43370745]
[1737944596596,53.9729115,235.83,235.46,29.18591507]
[1737944596597,26.98645575,235.62,235.57,2.7604]
[1737944596893,26.98645575,235.66,235.57,2.7604]
[1737944597493,0.03111257,235.64,235.59,0.02686011]
[1737944600796,26.98645575,235.6,235.47,2.8932]
[1737944601003,26.98645575,235.56,235.47,2.8932]
[1737944601403,4.2477,235.55,235.47,2.8932]
[1737944601603,26.98645575,235.52,235.38,4.521]
[1737944601805,4.2494,235.46,235.39,2.8932]
[1737944602003,0.02990358,235.47,235.43,0.02809034]
[1737944602507,4.2496,235.45,235.43,0.02809034]
[1737944602798,26.98645575,235.44,235.39,2.8932]
[1737944604001,26.98645575,235.44,235.39,0.03223033]
[1737944604299,4.2502,235.41,235.39,0.03223033]
[1737944604602,26.98645575,235.4,235.39,0.03223033]
[1737944604807,26.98645575,235.4,235.27,5.0579]
[1737944605103,26.98645575,235.36,235.27,5.0579]
[1737944605505,4.2514,235.35,235.27,5.0579]
[1737944605707,26.98645575,235.36,235.27,5.0579]
[1737944605899,0.03120684,235.33,235.29,0.03214326]
[1737944606803,4.2521,235.31,235.29,0.03214326]
[1737944608406,4.28300684,235.33,235.29,0.03214326]
[1737944609104,0.03120684,235.33,235.29,0.03214326]
[1737944611509,4.28290684,235.33,235.29,0.03214326]
[1737944611905,0.03120684,235.33,235.29,0.03214326]
[1737944612510,26.98645575,235.32,235.29,0.03214326]
[1737944612705,26.98645575,235.32,235.18,4.4806]
[1737944613409,26.98645575,235.32,235.19,4.2542]
[1737944613809,0.03148713,235.28,235.23,0.02846547]
[1737944614500,0.03148713,235.28,235.24,4.2532]
[1737944614703,0.03148713,235.28,235.23,0.02846547]
[1737944615204,0.03148713,235.28,235.23,4.28186547]
[1737944615511,0.03148713,235.28,235.23,0.02846547]
[1737944616902,4.28408713,235.28,235.23,0.02846547]
[1737944617306,0.03148713,235.28,235.23,0.02846547]
[1737944618815,4.2531,235.25,235.23,0.02846547]
[1737944619210,0.03148713,235.28,235.23,0.02846547]
[1737944620614,4.28408713,235.28,235.23,0.02846547]
[1737944620809,0.03148713,235.28,235.23,0.02846547]
[1737944621216,4.2531,235.25,235.23,0.02846547]
[1737944621414,0.03148713,235.28,235.23,0.02846547]
[1737944622414,4.2529,235.26,235.23,0.02846547]
[1737944622616,0.03148713,235.28,235.23,0.02846547]
[1737944623017,4.2532,235.25,235.23,0.02846547]
[1737944623720,4.2531,235.25,235.23,0.02846547]
[1737944624216,0.03148713,235.28,235.23,0.02846547]
[1737944625114,0.03148713,235.28,235.23,4.28176547]
[1737944626019,0.03148713,235.28,235.23,0.02846547]
[1737944626617,4.2528,235.27,235.23,0.02846547]
[1737944626816,0.03148713,235.28,235.23,0.02846547]
[1737944627216,4.28418713,235.28,235.23,0.02846547]
[1737944628415,0.03148713,235.28,235.23,0.02846547]
[1737944629112,4.28418713,235.28,235.23,0.02846547]
[1737944629313,4.28418713,235.28,235.23,4.28186547]
[1737944630019,0.03148713,235.28,235.23,0.02846547]
[1737944630519,4.2513,235.36,235.3,4.2521]
[1737944631016,4.2517,235.33,235.27,4.2526]
[1737944631320,26.98645575,235.4,235.18,4.4806]
[1737944631816,0.02928732,235.31,235.27,0.03150846]
[1737944632018,26.98645575,235.4,235.27,0.03150846]
[1737944632217,0.02933383,235.31,235.27,0.03150846]
[1737944632418,26.98645575,235.4,235.27,0.03150846]
[1737944632619,0.03055121,235.31,235.27,0.03150846]
[1737944632919,16.65793834,235.37,235.18,4.4806]
[1737944633119,0.0314708,235.31,235.27,0.02873756]
[1737944634519,0.0314708,235.31,235.27,4.28133756]
[1737944635315,4.2522,235.3,235.27,0.02873756]
[1737944635516,0.0314708,235.31,235.27,0.02873756]
[1737944636017,4.2525,235.28,235.27,0.02873756]
[1737944637022,0.0314708,235.31,235.27,0.02873756]
[1737944639317,0.0314708,235.31,235.3,4.2522]
[1737944640425,16.65793834,235.49,235.3,11.70315279]
[1737944640719,16.65793834,235.53,235.33,16.65793834]
[1737944640924,4.2493,235.46,235.34,11.70315279]
[1737944641118,4.2493,235.46,235.33,16.65793834]
[1737944641323,16.65793834,235.53,235.33,16.65793834]
[1737944641525,16.65793834,235.53,235.32,10.34822718]
[1737944641526,0.02830042,235.42,235.37,0.03126722]
[1737944642026,0.02830042,235.42,235.38,4.2507]
[1737944642225,16.65793834,235.53,235.37,0.03126722]
[1737944642626,16.65793834,235.53,235.33,16.65793834]
[1737944643027,16.65793834,235.53,235.31,2.2484]
[1737944643221,16.65793834,235.49,235.31,2.2484]
[1737944643524,0.03136991,235.44,235.4,0.027348]
[1737944643827,2.437,235.54,235.4,0.027348]
[1737944644025,16.65793834,235.57,235.4,0.027348]
[1737944644218,2.3409,235.6,235.37,16.65793834]
[1737944644416,2.3409,235.6,235.41,16.65793834]
[1737944644618,2.3409,235.6,235.42,5.0315]
[1737944645231,0.02809083,235.53,235.49,0.03197131]
[1737944646024,4.2483,235.52,235.49,0.03197131]
[1737944646226,0.02809083,235.53,235.49,0.03197131]
[1737944646425,16.68602917,235.53,235.49,7.131e-05]
[1737944646626,4.2484,235.51,235.49,7.131e-05]
[1737944646821,16.68602917,235.53,235.34,5.0986]
[1737944647027,16.65793834,235.53,235.34,5.0986]
[1737944647223,4.2496,235.45,235.36,4.2511]
[1737944647427,16.65793834,235.53,235.35,2.2596]
[1737944647927,0.03102955,235.46,235.42,0.02861804]
[1737944648128,16.65793834,235.57,235.35,2.2596]
[1737944648328,0.02936815,235.46,235.42,0.02773894]
[1737944648721,4.249,235.48,235.42,0.03213916]
[1737944649027,0.03044113,235.46,235.42,0.03213916]
[1737944649932,0.03044113,235.46,235.42,4.28213916]
[1737944650927,0.03044113,235.46,235.44,4.2496]
[1737944651323,0.03044113,235.46,235.42,0.03213916]
[1737944651522,0.03044113,235.46,235.42,4.28213916]
[1737944652232,0.03044113,235.46,235.43,4.2498]
[1737944652425,2.3409,235.6,235.42,0.03213916]
[1737944652426,2.3409,235.6,235.42,16.6900775]
[1737944652628,2.3409,235.6,235.42,16.65793834]
[1737944652830,4.2479,235.54,235.48,4.2488]
[1737944653030,4.2479,235.54,235.42,16.65793834]
[1737944653232,2.3036,235.67,235.35,2.2596]
[1737944653233,16.65793834,235.69,235.46,16.65793834]
[1737944653424,0.02765121,235.6,235.5,16.65793834]
[1737944653630,0.02765121,235.6,235.55,0.03084195]
[1737944653835,16.65793834,235.73,235.6,4.2467]
[1737944654027,0.02680756,235.6,235.55,0.02922447]
[1737944654233,4.2473,235.58,235.52,4.2482]
[1737944654429,4.2473,235.58,235.55,0.02742501]
[1737944654829,0.03068928,235.6,235.55,0.02742501]
[1737944654830,4.2475,235.56,235.55,0.02742501]
[1737944656032,4.2472,235.58,235.55,0.02742501]
[1737944656236,0.03068928,235.6,235.55,0.02742501]
[1737944656736,4.2475,235.56,235.55,0.02742501]
[1737944657131,0.03068928,235.6,235.47,5.1895]
[1737944657336,4.2489,235.48,235.47,2.9371]
[1737944657933,4.2497,235.44,235.38,4.675]
[1737944658142,16.65793834,235.53,235.39,2.6715]
[1737944658334,0.02783114,235.43,235.39,2.70097537]
[1737944658638,4.2502,235.41,235.39,0.02947537]
[1737944658834,0.02807038,235.43,235.3,7.3465]
[1737944659036,4.2505,235.4,235.38,0.02896205]
[1737944659238,16.65793834,235.49,235.38,0.02896205]
[1737944659429,0.02903494,235.42,235.38,0.02896205]
[1737944661244,16.65793834,235.56,235.38,0.02896205]
[1737944661435,4.2483,235.52,235.43,4.2497]
[1737944661640,21.32443834,235.6,235.37,16.65793834]
[1737944662342,16.65793834,235.56,235.32,16.65793834]
[1737944662642,0.02987928,235.51,235.46,0.02979712]
[1737944663037,4.249,235.48,235.46,0.02979712]
[1737944665042,4.2487,235.5,235.46,0.02979712]
[1737944665342,0.02987928,235.51,235.46,0.02979712]
[1737944667841,0.02987928,235.51,235.49,4.2487]
[1737944668241,0.02987928,235.51,235.47,4.249]
[1737944668541,0.02987928,235.51,235.46,0.02979712]
[1737944668842,0.02987928,235.51,235.47,4.2491]
[1737944669041,0.02987928,235.51,235.46,0.02979712]
[1737944671245,0.02987928,235.51,235.48,4.2489]
[1737944671741,0.02987928,235.51,235.5,4.2486]
[1737944672140,0.02987928,235.51,235.46,0.02979712]
[1737944672746,4.27827928,235.51,235.47,4.2491]
[1737944672946,0.02987928,235.51,235.46,0.02979712]
[1737944673347,4.2487,235.5,235.46,0.02979712]
[1737944673548,0.02987928,235.51,235.46,0.02979712]
[1737944674246,4.249,235.48,235.46,0.02979712]
[1737944674645,0.02987928,235.51,235.46,0.02979712]
[1737944676352,0.02987928,235.51,235.47,4.2491]
[1737944676946,0.02987928,235.51,235.46,0.02979712]
[1737944677147,0.02987928,235.51,235.46,4.27909712]
[1737944677842,4.27827928,235.51,235.46,4.27909712]
[1737944678244,4.27827928,235.51,235.47,4.2491]
[1737944678645,0.02987928,235.51,235.46,0.02979712]
[1737944679051,4.2489,235.49,235.46,0.02979712]
[1737944679253,0.02987928,235.51,235.46,0.02979712]
[1737944679455,0.02987928,235.51,235.46,4.27909712]
[1737944679658,4.27847928,235.51,235.46,4.27909712]
[1737944680955,4.27847928,235.51,235.47,4.2491]
[1737944681555,0.02987928,235.51,235.47,4.2491]
[1737944681755,0.02987928,235.51,235.46,0.02979712]
[1737944683054,4.2486,235.5,235.46,4.27909712]
[1737944683753,0.02987928,235.51,235.46,0.02979712]
[1737944685160,2.3321,235.66,235.46,0.02979712]
[1737944685357,2.3321,235.66,235.44,16.65793834]
[1737944685758,4.2469,235.6,235.55,4.2476]
[1737944685963,2.3321,235.66,235.42,4.9826]
[1737944685964,16.65793834,235.63,235.42,4.9826]
[1737944686161,16.65793834,235.59,235.42,4.9826]
[1737944686356,4.249,235.48,235.42,9.2324]
[1737944686561,0.03172597,235.55,235.48,0.03065734]
[1737944686760,16.65793834,235.59,235.42,4.9826]
[1737944686958,4.249,235.48,235.43,4.2498]
[1737944687662,0.02926952,235.48,235.43,0.02988296]
[1737944689467,16.65793834,235.47,235.33,2.1548]
[1737944689969,5.5286,235.54,235.33,2.1548]
[1737944689970,16.65793834,235.51,235.33,2.1548]
[1737944690265,16.65793834,235.51,235.39,4.2505]
[1737944690666,0.02962427,235.47,235.43,0.0276393]
[1737944693573,4.2497,235.44,235.43,0.0276393]
[1737944694973,0.02962427,235.47,235.34,2.4082]
[1737944695169,16.68756261,235.47,235.34,2.4082]
[1737944695370,16.65793834,235.43,235.2,27.24634504]
[1737944695574,16.65793834,235.39,235.22,2.3576]
[1737944696270,0.02925565,235.33,235.28,0.02899362]
[1737944696468,0.02925565,235.33,235.31,4.2519]
[1737944697776,0.02925565,235.33,235.28,0.02899362]
[1737944697777,1.3679,235.5,235.28,16.68693196]
[1737944697973,2.0133,235.54,235.32,16.65793834]
[1737944698175,2.0133,235.54,235.36,16.65793834]
[1737944698368,2.0133,235.54,235.45,4.2494]
[1737944698879,0.03139583,235.52,235.47,0.03245894]
[1737944699272,4.2484,235.51,235.47,0.03245894]
[1737944700275,0.03139583,235.52,235.47,0.03245894]
[1737944700976,4.2488,235.49,235.47,0.03245894]
[1737944701178,4.2488,235.49,235.47,0.00145995]
[1737944701377,16.65935673,235.52,235.36,2.0831]
[1737944701572,16.6279609,235.52,235.34,1.9927]
[1737944702681,4.25,235.42,235.41,0.02841712]
[1737944702883,16.6279609,235.43,235.28,2.3758]
[1737944703071,4.2519,235.32,235.28,2.3758]
[1737944703378,16.6279609,235.43,235.28,2.3758]
[1737944703783,4.2517,235.33,235.28,2.3758]
[1737944703978,0.02742936,235.38,235.33,0.02867531]
[1737944704174,4.2513,235.35,235.24,2.1543]
[1737944704379,16.6279609,235.39,235.24,2.1543]
[1737944704576,0.02826789,235.38,235.33,0.03038183]
[1737944704780,4.2526,235.28,235.21,4.522]
[1737944704980,16.6279609,235.39,235.21,4.522]
[1737944705174,16.6279609,235.35,235.22,0.03198969]
[1737944705480,0.03205663,235.31,235.21,4.522]
[1737944705782,4.2527,235.28,235.26,0.02804599]
[1737944707084,0.03205663,235.31,235.26,0.02804599]
[1737944708286,4.2526,235.28,235.26,0.02804599]
[1737944710083,0.03205663,235.31,235.26,0.02804599]
[1737944711986,4.2527,235.27,235.26,0.02804599]
[1737944716386,0.03205663,235.31,235.26,0.02804599]
[1737944718195,4.2523,235.3,235.26,0.02804599]
[1737944718492,0.03205663,235.31,235.26,0.02804599]
[1737944718789,4.2527,235.27,235.26,0.02804599]
[1737944719599,0.03205663,235.31,235.26,4.28094599]
[1737944719892,0.03205663,235.31,235.26,0.02804599]
[1737944721092,16.6279609,235.49,235.26,0.02804599]
[1737944721291,4.2502,235.42,235.28,16.6279609]
[1737944721486,16.6279609,235.49,235.29,2.3705]
[1737944721689,16.6279609,235.45,235.29,2.3705]
[1737944722299,0.03046922,235.39,235.35,0.03265181]
[1737944722492,14.66173806,235.36,235.35,5.181e-05]
[1737944724995,4.2511,235.36,235.35,5.181e-05]
[1737944725698,4.2509,235.38,235.35,5.181e-05]
[1737944725894,0.03046922,235.39,235.35,5.181e-05]
[1737944726202,4.2511,235.36,235.35,5.181e-05]
[1737944726697,14.66173806,235.36,235.35,5.181e-05]
[1737944730895,4.2511,235.36,235.35,5.181e-05]
[1737944732502,14.66173806,235.36,235.35,5.181e-05]
[1737944733204,4.2509,235.38,235.35,5.181e-05]
[1737944733402,0.03046922,235.39,235.35,5.181e-05]
[1737944734205,4.2509,235.38,235.35,5.181e-05]
[1737944734400,0.03046922,235.39,235.35,5.181e-05]
[1737944734705,4.2511,235.36,235.35,5.181e-05]
[1737944735406,0.03046922,235.39,235.35,5.181e-05]
[1737944735604,4.2508,235.38,235.35,5.181e-05]
[1737944736607,0.03046922,235.39,235.35,5.181e-05]
[1737944737006,4.2511,235.36,235.35,5.181e-05]
[1737944739004,10.44110728,235.39,235.22,1.9915]
[1737944739303,4.2527,235.28,235.22,1.9915]
[1737944740007,4.1441,235.43,235.22,1.9915]
[1737944740310,0.02872528,235.27,235.25,4.2531]
[1737944740509,10.41063806,235.37,235.22,12.40213806]
[1737944740707,0.02699216,235.28,235.24,0.02986885]
[1737944740902,10.41063806,235.37,235.24,0.02986885]
[1737944741508,10.44212018,235.33,235.24,0.02986885]
[1737944741909,4.2525,235.29,235.26,0.02987576]
[1737944742705,10.44212018,235.33,235.26,0.02987576]
[1737944742912,10.41063806,235.29,235.26,0.02987576]
[1737944743312,4.2527,235.27,235.26,0.02987576]
[1737944744410,10.41063806,235.29,235.14,2.342]
[1737944744712,12.43703806,235.32,235.14,2.342]
[1737944744713,10.41063806,235.21,235.14,2.342]
[1737944745008,10.41063806,235.18,235.09,2.1305]
[1737944745218,10.41063806,235.18,235.03,2.342]
[1737944745511,0.02951673,235.16,235.11,0.03051572]
[1737944745714,4.2555,235.12,235.11,0.03051572]
[1737944748120,14.66613806,235.12,235.11,1.572e-05]
[1737944750617,4.255,235.15,235.11,1.572e-05]
[1737944750817,10.44015479,235.16,235.11,1.572e-05]
[1737944752423,4.2554,235.12,235.11,1.572e-05]
[1737944752917,14.66603806,235.12,235.11,1.572e-05]
[1737944753320,4.2554,235.12,235.11,1.572e-05]
[1737944754021,4.2552,235.14,235.11,1.572e-05]
[1737944754222,10.44015479,235.16,235.11,1.572e-05]
[1737944754424,4.2553,235.14,235.11,1.572e-05]
[1737944755020,4.2553,235.13,235.11,1.572e-05]
[1737944756325,0.02951673,235.16,235.11,1.572e-05]
[1737944757931,10.41063806,235.28,235.11,1.572e-05]
[1737944758327,10.41063806,235.28,235.13,10.41063806]
[1737944758534,10.41063806,235.32,235.14,2.0179]
[1737944759033,10.41063806,235.32,235.21,0.03121879]
[1737944759034,0.02779762,235.25,235.21,0.03121879]
[1737944761340,17.13193599,235.37,235.21,16.69432574]
[1737944761536,16.66310695,235.43,235.21,16.69432574]
[1737944761732,16.66310695,235.43,235.21,16.66310695]
[1737944761937,4.2515,235.34,235.21,16.66310695]
[1737944762132,16.66310695,235.43,235.21,16.66310695]
[1737944762335,4.2512,235.36,235.27,4.2526]
[1737944762532,0.03096844,235.34,235.3,0.02685848]
[1737944762732,16.66310695,235.43,235.3,0.02685848]
[1737944762936,4.2517,235.33,235.3,0.02685848]
[1737944763140,16.66310695,235.47,235.3,0.02685848]
[1737944763341,16.66310695,235.51,235.29,16.66310695]
[1737944763531,4.2499,235.43,235.36,4.2509]
[1737944763738,16.66310695,235.51,235.29,16.66310695]
[1737944764136,4.2491,235.47,235.4,4.2503]
[1737944764343,0.03105003,235.42,235.38,0.03153539]
[1737944764738,16.66310695,235.51,235.38,0.03153539]
[1737944764945,0.02774049,235.42,235.38,0.03153539]
[1737944765141,16.66310695,235.51,235.38,0.03153539]
[1737944765346,0.02952146,235.42,235.29,16.66310695]
[1737944765541,16.66310695,235.51,235.29,16.66310695]
[1737944765740,16.66310695,235.51,235.33,0.0290645]
[1737944765937,16.66310695,235.63,235.41,16.66310695]
[1737944766437,2.1275,235.66,235.45,16.66310695]
[1737944766642,0.02979938,235.54,235.5,0.03246543]
[1737944766939,16.66310695,235.63,235.41,16.66310695]
[1737944767546,16.66310695,235.63,235.45,4.2494]
[1737944767844,16.66310695,235.63,235.34,194.04]
[1737944768051,0.02795048,235.56,235.52,0.02867924]
[1737944768346,0.02795048,235.56,235.45,16.66310695]
[1737944768347,4.2469,235.6,235.46,1.9685]
[1737944768547,0.02943078,235.56,235.52,0.03239601]
[1737944768942,2.1275,235.66,235.52,0.03239601]
[1737944769145,0.0310473,235.56,235.52,0.03239601]
[1737944769350,2.1275,235.66,235.52,0.03239601]
[1737944769952,4.2472,235.58,235.52,0.03239601]
[1737944770141,0.02879265,235.61,235.53,16.66310695]
[1737944770343,0.02879265,235.61,235.54,2.0769]
[1737944770744,0.02879265,235.61,235.52,0.03239601]
[1737944771547,4.2479,235.54,235.52,0.03239601]
[1737944772144,0.02758534,235.55,235.52,0.03239601]
[1737944772346,4.2476,235.56,235.52,0.03239601]
[1737944772546,4.2788624,235.56,235.52,0.03239601]
[1737944772747,0.0312624,235.56,235.52,0.03239601]
[1737944773045,4.2479,235.54,235.52,0.03239601]
[1737944774553,16.66310695,235.53,235.33,2.3377]
[1737944774754,16.66310695,235.49,235.33,2.3377]
[1737944775648,0.03258118,235.43,235.39,0.03130055]
[1737944776249,4.28258118,235.43,235.39,0.03130055]
[1737944776551,0.03258118,235.43,235.39,0.03130055]
[1737944778844,0.03258118,235.43,235.41,4.2501]
[1737944779044,0.03258118,235.43,235.39,0.03130055]
[1737944780754,0.03258118,235.43,235.39,4.28180055]
[1737944780949,2.045,235.52,235.39,0.03130055]
[1737944781151,2.1242,235.56,235.39,1.99570055]
[1737944781355,2.1242,235.56,235.39,1.9644]
[1737944782055,0.032366,235.5,235.45,0.03210337]
[1737944783555,0.032366,235.5,235.46,4.2492]
[1737944783858,0.032366,235.5,235.45,0.03210337]
[1737944784054,0.032366,235.5,235.47,4.2489]
[1737944784255,0.032366,235.5,235.45,0.03210337]
[1737944784653,0.032366,235.5,235.46,4.2492]
[1737944784849,0.032366,235.5,235.45,0.03210337]
[1737944785259,0.032366,235.5,235.49,4.2488]
[1737944785752,0.032366,235.5,235.45,0.03210337]
[1737944787058,4.2493,235.46,235.45,0.03210337]
[1737944788256,4.2491,235.47,235.45,0.03210337]
[1737944788455,0.032366,235.5,235.45,0.03210337]
[1737944789561,0.032366,235.5,235.46,4.2491]
[1737944790061,0.032366,235.5,235.45,4.28150337]
[1737944790360,0.032366,235.5,235.45,0.03210337]
[1737944792361,0.032366,235.5,235.49,4.2488]
[1737944793456,16.66310695,235.65,235.53,4.2479]
[1737944793959,4.2472,235.58,235.53,4.2479]
[1737944794655,0.03158288,235.58,235.54,4.2478]
[1737944795265,0.03158288,235.58,235.57,4.2473]
[1737944796059,0.03158288,235.58,235.53,0.0284946]
[1737944797762,4.2479,235.54,235.53,0.0284946]
[1737944799767,16.66310695,235.56,235.33,96.16310695]
[1737944799968,18.11680695,235.56,235.34,2.3238]
[1737944800168,4.2495,235.45,235.38,4.2506]
[1737944800665,4.2495,235.45,235.34,2.3238]
[1737944800865,0.02890805,235.44,235.39,0.02839858]
[1737944802167,0.02890805,235.44,235.39,4.27889858]
[1737944802963,0.02890805,235.44,235.39,0.02839858]
[1737944803462,4.2504,235.4,235.39,0.02839858]
[1737944804660,1.9763,235.43,235.27,2.5512]
[1737944805165,4.25,235.42,235.29,16.66310695]
[1737944805366,1.9763,235.43,235.29,16.66310695]
[1737944805563,1.9763,235.43,235.33,4.2516]
[1737944805868,1.9763,235.43,235.34,0.02804592]
[1737944805869,0.03176892,235.38,235.34,0.02804592]
[1737944806467,4.2509,235.37,235.34,0.02804592]
[1737944806671,0.03176892,235.38,235.34,0.02804592]
[1737944807269,0.03176892,235.38,235.37,4.2509]
[1737944807665,0.03176892,235.38,235.34,0.02804592]
[1737944808473,0.03176892,235.38,235.35,4.2513]
[1737944808770,0.03176892,235.38,235.34,0.02804592]